bitfinex-derivatives/quotes_BNBF0:USTF0_20250330
["timestamp","ask_amount","ask_price","bid_price","bid_amount"]
[1743332616684,0.32998944,606.08,605.45,0.28716899]
[1743332616884,0.32998944,606.08,605.55,1.0]
[1743332627183,0.32998944,606.08,605.41,1.0]
[1743332638290,0.32998944,606.08,605.54,1.0]
[1743332659607,0.32998944,606.08,605.39,1.0]
[1743332660606,1.08430806,606.07,605.39,1.0]
[1743332660802,0.33000033,606.06,605.39,1.0]
[1743332668717,2.28446901,606.05,605.39,1.0]
[1743332669017,0.33001122,606.04,605.39,1.0]
[1743332670217,1.08398121,606.03,605.39,1.0]
[1743332670412,0.33002211,606.02,605.39,1.0]
[1743332670811,1.08398121,606.01,605.39,1.0]
[1743332671014,0.330033,606.0,605.39,1.0]
[1743332671711,1.08398121,605.99,605.39,1.0]
[1743332671920,0.33004389,605.98,605.39,1.0]
[1743332672117,1.4140251,605.98,605.39,1.0]
[1743332672717,1.4140251,605.98,605.24,1.0]
[1743332672917,1.08398121,605.97,605.24,1.0]
[1743332673118,0.33005478,605.96,605.24,1.0]
[1743332673618,1.08398121,605.95,605.24,1.0]
[1743332673811,0.33006568,605.94,605.24,1.0]
[1743332674217,1.41404689,605.94,605.24,1.0]
[1743332674814,0.33006568,605.94,605.24,1.0]
[1743332678818,2.28345302,605.93,605.24,1.0]
[1743332679023,2.61352959,605.92,605.24,1.0]
[1743332679222,0.33008202,605.91,605.24,1.0]
[1743332679823,2.43704911,605.9,605.24,1.0]
[1743332680023,0.33009292,605.89,605.24,1.0]
[1743332680725,1.08353073,605.88,605.24,1.0]
[1743332681220,3.69524688,605.87,605.09,1.0]
[1743332681423,2.28161234,605.86,605.09,1.0]
[1743332681618,2.28161234,605.85,605.09,1.0]
[1743332681822,2.28161234,605.84,605.09,1.0]
[1743332682024,2.28161234,605.83,605.09,1.0]
[1743332682223,2.28161234,605.82,605.09,1.0]
[1743332682422,2.28161234,605.81,605.09,1.0]
[1743332682627,3.36514307,605.8,605.09,1.0]
[1743332682825,2.28161234,605.79,605.09,1.0]
[1743332683025,1.08353073,605.8,605.09,1.0]
[1743332683225,1.08353073,605.79,605.09,1.0]
[1743332683424,1.35034576,605.78,605.09,1.0]
[1743332683727,2.27740648,605.85,604.38,2.5143057]
[1743332683926,0.28747145,605.78,604.95,1.0]
[1743332684928,1.08353073,605.77,604.95,1.0]
[1743332685128,0.33016921,605.75,604.95,1.0]
[1743332685524,1.08353073,605.74,604.95,1.0]
[1743332685723,0.33018011,605.73,604.95,1.0]
[1743332686125,1.25724083,605.73,604.95,1.0]
[1743332686423,1.08353073,605.72,604.95,1.0]
[1743332686622,0.33019101,605.71,604.95,1.0]
[1743332686830,1.41372174,605.71,604.95,1.0]
[1743332687226,0.92706072,605.7,604.95,1.0]
[1743332687425,1.25726263,605.69,604.95,1.0]
[1743332687624,0.92706072,605.68,604.95,1.0]
[1743332688132,1.25727354,605.67,604.95,1.0]
[1743332688330,0.33021827,605.66,604.95,1.0]
[1743332689131,1.08353073,605.65,604.95,1.0]
[1743332689528,0.33022917,605.64,604.95,1.0]
[1743332689732,0.92325785,605.63,603.76,2.5143057]
[1743332689927,0.33024553,605.61,604.8,1.0]
[1743332690526,0.92268603,605.6,604.8,1.0]
[1743332690733,1.25294247,605.59,604.8,1.0]
[1743332690933,1.25294792,605.58,604.8,1.0]
[1743332691133,1.25295338,605.57,604.8,1.0]
[1743332691426,2.33648956,605.56,604.8,1.0]
[1743332691632,4.07235897,605.55,604.56,1.28758192]
[1743332691832,0.33028916,605.53,604.56,1.0]
[1743332692126,3.73959836,605.52,604.56,1.0]
[1743332692334,0.33030553,605.5,604.56,1.0]
[1743332692526,3.73959836,605.49,604.56,1.0]
[1743332692726,0.33032189,605.47,604.56,1.0]
[1743332692924,3.73959836,605.46,604.56,1.0]
[1743332693127,2.81282821,605.48,604.56,1.0]
[1743332693128,0.33033826,605.44,604.56,1.0]
[1743332693332,3.73959836,605.43,604.56,1.0]
[1743332693529,0.33035463,605.41,604.56,1.0]
[1743332693725,2.26475185,605.4,604.56,1.0]
[1743332693929,2.81282821,605.43,604.56,1.0]
[1743332693930,0.330371,605.38,604.56,1.0]
[1743332694232,2.26475185,605.37,604.56,1.0]
[1743332694432,0.33038737,605.35,604.56,1.0]
[1743332694632,0.92177907,605.34,604.56,1.0]
[1743332694831,1.25217736,605.33,604.56,1.0]
[1743332695030,1.25218282,605.32,604.56,1.0]
[1743332695333,2.59042217,605.31,604.56,1.0]
[1743332695533,2.26001296,605.3,604.56,1.0]
[1743332695727,1.25219919,605.29,604.56,1.0]
[1743332695927,0.92177907,605.28,604.56,1.0]
[1743332696128,1.25221011,605.27,604.56,1.0]
[1743332696329,1.08353073,605.3,604.56,1.0]
[1743332696330,1.25221557,605.26,604.56,1.0]
[1743332696533,1.25222103,605.25,604.56,1.0]
[1743332696730,1.25222649,605.24,604.56,1.0]
[1743332696932,1.25223195,605.23,604.56,1.0]
[1743332697130,1.25223741,605.22,604.56,1.0]
[1743332697332,1.25224287,605.21,604.56,1.0]
[1743332697538,0.92177907,605.2,604.56,1.0]
[1743332697734,0.92177907,605.19,604.56,1.0]
[1743332697934,0.3304638,605.21,604.56,1.0]
[1743332698135,1.08353073,605.18,604.56,1.0]
[1743332698338,0.33048564,605.17,604.56,1.0]
[1743332702233,0.33048564,605.17,604.43,1.0]
[1743332702433,0.91604513,605.16,604.43,1.0]
[1743332702634,0.91604513,605.15,604.43,1.0]
[1743332702839,0.91604513,605.14,604.43,1.0]
[1743332703139,0.91604513,605.13,604.43,1.0]
[1743332703337,0.91604513,605.12,604.43,1.0]
[1743332703639,0.91604513,605.11,604.43,1.0]
[1743332703840,1.24656901,605.1,604.43,1.0]
[1743332704039,0.91604513,605.09,604.43,1.0]
[1743332704337,0.91604513,605.08,604.43,1.0]
[1743332704539,0.91604513,605.07,604.43,1.0]
[1743332704740,0.91604513,605.06,604.43,1.0]
[1743332704933,0.91604513,605.05,604.43,1.0]
[1743332705136,1.06792918,605.07,604.43,1.0]
[1743332705337,1.24551335,605.06,604.43,1.0]
[1743332705538,1.24551881,605.05,604.43,1.0]
[1743332705738,1.24552427,605.04,604.43,1.0]
[1743332705935,1.24552974,605.03,604.43,1.0]
[1743332706143,1.2455352,605.02,604.43,1.0]
[1743332706341,0.91496762,605.01,604.43,1.0]
[1743332706643,1.24554613,605.0,604.43,1.0]
[1743332706835,0.91496762,604.99,604.43,1.0]
[1743332707035,0.33057851,605.0,604.43,1.0]
[1743332707342,0.91394163,604.99,604.43,1.0]
[1743332707536,0.33057851,605.0,604.43,1.0]
[1743332707738,0.91390784,604.99,604.43,1.0]
[1743332707939,1.24449728,604.98,604.43,1.0]
[1743332708237,0.3305949,604.97,604.43,1.0]
[1743332709744,0.91390599,604.96,604.43,1.0]
[1743332709943,0.3305949,604.97,604.43,1.0]
[1743332710738,0.91372175,604.96,604.43,1.0]
[1743332711042,0.33060583,604.95,604.43,1.0]
[1743332711243,0.91361463,604.94,604.29,1.0]
[1743332711443,0.91361463,604.93,604.29,1.0]
[1743332711643,3.70433176,604.92,604.29,1.0]
[1743332711837,3.70433176,604.91,604.29,1.0]
[1743332712041,3.70433176,604.9,604.29,1.0]
[1743332712243,2.70513945,604.89,604.29,1.0]
[1743332712443,2.70514492,604.88,604.29,1.0]
[1743332712637,2.70344263,604.87,604.29,1.0]
[1743332712837,2.37279307,604.86,604.29,1.0]
[1743332713040,2.37279307,604.85,604.29,1.0]
[1743332713339,0.91261272,604.84,604.29,1.0]
[1743332713536,0.91261272,604.83,604.29,1.0]
[1743332713740,0.91261272,604.82,604.29,1.0]
[1743332713940,0.91261272,604.81,604.29,1.0]
[1743332714140,0.91261272,604.8,604.29,1.0]
[1743332714438,0.91261272,604.79,604.29,1.0]
[1743332714641,0.91261272,604.78,604.29,1.0]
[1743332714939,0.33064956,604.87,604.29,1.0]
[1743332715139,0.91201384,604.86,604.29,1.0]
[1743332715339,0.91201384,604.85,604.29,1.0]
[1743332715539,0.91201384,604.84,604.29,1.0]
[1743332715737,1.24268526,604.83,604.29,1.0]
[1743332715941,0.91201384,604.82,604.29,1.0]
[1743332716142,0.91201384,604.81,604.29,1.0]
[1743332716337,0.33068783,604.8,604.29,1.0]
[1743332726447,0.33068783,604.8,604.43,1.0]
[1743332772489,0.33068783,604.8,604.58,1.0]
[1743332772686,1.08263411,605.32,604.58,1.0]
[1743332772886,0.33040921,605.31,604.58,1.0]
[1743332775095,1.52,605.3,604.58,1.0]
[1743332775297,0.33042012,605.29,604.58,1.0]
[1743332776296,1.08298018,605.28,604.58,1.0]
[1743332776495,0.33043104,605.27,604.58,1.0]
[1743332776895,1.08298018,605.26,604.58,1.0]
[1743332777095,0.33044196,605.25,604.58,1.0]
[1743332777293,1.08298018,605.24,604.58,1.0]
[1743332777491,0.33045288,605.23,604.58,1.0]
[1743332779095,1.08374625,605.22,604.58,1.0]
[1743332779295,0.3304638,605.21,604.58,1.0]
[1743332780600,0.9300866,605.2,604.58,1.0]
[1743332780898,2.61523726,605.19,604.58,1.0]
[1743332781096,2.61524272,605.18,604.58,1.0]
[1743332781396,0.33048564,605.17,604.58,1.0]
[1743332781593,1.4152557,605.17,604.58,1.0]
[1743332782492,1.08477006,605.16,604.58,1.0]
[1743332782798,0.33049657,605.15,604.58,1.0]
[1743332783191,1.41526663,605.15,604.58,1.0]
[1743332784096,1.08477006,605.14,604.58,1.0]
[1743332784296,1.41527209,605.14,604.58,1.0]
[1743332784699,1.08477006,605.13,604.58,1.0]
[1743332784997,0.33051295,605.12,604.58,1.0]
[1743332788901,0.33051295,605.12,604.72,1.0]
[1743332794801,0.33051295,605.12,604.59,1.0]
[1743332803506,0.33051295,605.12,604.74,1.0]
[1743332828536,1.062,605.11,604.74,1.0]
[1743332849247,0.33051295,605.12,604.74,1.0]
[1743332854657,1.338,605.11,604.74,1.0]
[1743332855255,1.338,605.11,604.1,2.5143057]
[1743332855456,1.338,605.11,604.55,1.0]
[1743332855649,0.33052388,605.1,604.55,1.0]
[1743332867260,0.33052388,605.1,604.7,1.0]
[1743332867966,1.149,605.09,604.7,1.0]
[1743332869366,1.149,605.09,604.86,1.0]
[1743332885483,1.149,605.09,604.63,0.28760806]
[1743332885676,1.149,605.09,604.71,1.0]
[1743332892081,1.08541444,605.3,604.71,1.0]
[1743332892280,0.33042012,605.29,604.71,1.0]
[1743332897691,1.216,605.28,604.71,1.0]
[1743332900692,1.353,605.27,604.71,1.0]
[1743332900900,2.755,605.27,604.71,1.0]
[1743332901094,0.3304365,605.26,604.71,1.0]
[1743332917309,1.467,605.25,604.71,1.0]
[1743332917515,0.33044742,605.24,604.71,1.0]
[1743332919309,1.281,605.23,604.71,1.0]
[1743332921018,1.484,605.22,604.71,1.0]
[1743332926715,1.484,605.22,604.86,1.0]
[1743332936031,1.281,605.23,604.86,1.0]
[1743332944830,1.474,605.22,604.86,1.0]
[1743332951034,1.469,605.21,604.86,1.0]
[1743332972156,1.469,605.21,605.0,1.0]
[1743332976756,1.469,605.21,604.86,0.28753202]
[1743332977361,1.469,605.21,604.13,2.5143057]
[1743332977559,1.469,605.21,604.83,1.0]
[1743332978664,1.159,605.2,604.83,1.0]
[1743332985274,1.159,605.2,604.98,1.0]
[1743332994279,2.307,605.2,604.98,1.0]
[1743332999679,2.307,605.2,605.12,1.0]
[1743333004686,1.148,605.2,605.12,1.0]
[1743333008797,0.11891464,605.2,605.12,1.0]
[1743333008996,2.961,605.32,605.12,1.0]
[1743333016606,4.251,605.32,605.12,1.0]
[1743333025011,4.251,605.32,605.26,1.0]
[1743333025216,2.754,605.32,605.26,1.0]
[1743333034721,1.464,605.32,605.26,1.0]
[1743333037526,1.278,605.73,605.26,1.0]
[1743333037724,1.278,605.73,605.42,1.0]
[1743333046928,1.367,605.72,605.42,1.0]
[1743333050140,2.308,605.97,605.42,1.0]
[1743333056045,1.087,605.97,605.42,1.0]
[1743333058450,1.087,605.97,605.6,1.0]
[1743333066755,1.087,605.97,605.78,1.0]
[1743333067160,1.0996643,606.45,605.78,1.0]
[1743333067461,1.42945784,606.44,605.78,1.0]
[1743333067762,0.32979898,606.43,605.78,1.0]
[1743333070562,1.054,606.42,605.78,1.0]
[1743333070762,0.32980986,606.41,605.78,1.0]
[1743333072770,2.241,606.4,605.78,1.0]
[1743333073566,2.241,606.4,605.93,1.0]
[1743333094982,1.156,606.4,605.93,1.0]
[1743333095589,1.698,606.39,605.93,1.0]
[1743333097385,1.234,606.38,605.93,1.0]
[1743333105491,1.338,606.37,605.93,1.0]
[1743333115408,1.379,606.36,605.93,1.0]
[1743333126528,1.234,606.35,605.93,1.0]
[1743333135225,1.591,606.34,605.93,1.0]
[1743333142432,1.477,606.33,605.93,1.0]
[1743333166738,2.877,606.33,605.93,1.0]
[1743333171343,2.877,606.33,605.73,0.28709437]
[1743333171646,2.877,606.33,605.77,1.0]
[1743333186654,4.266,606.33,605.77,1.0]
[1743333197760,5.799,606.33,605.77,1.0]
[1743333201059,7.313,606.33,605.77,1.0]
[1743333249602,8.848,606.33,605.77,1.0]
[1743333259211,8.848,606.33,605.9,1.0]
[1743333283332,8.848,606.33,606.05,1.0]
[1743333315658,8.848,606.33,605.91,1.0]
[1743333330970,8.848,606.33,606.04,1.0]
[1743333349085,8.848,606.33,606.26,1.0]
[1743333349490,1.64235463,607.42,606.26,1.0]
[1743333349688,5.95032217,607.41,606.26,1.0]
[1743333349886,0.32927772,607.39,606.26,1.0]
[1743333350183,5.95032217,607.38,606.26,1.0]
[1743333350389,0.32929399,607.36,606.26,1.0]
[1743333350591,5.95032217,607.35,606.26,1.0]
[1743333350789,5.95032217,607.34,606.26,1.0]
[1743333350991,4.1083365,607.33,606.26,1.0]
[1743333351189,4.10834193,607.32,606.26,1.0]
[1743333351393,1.2608466,607.31,606.26,1.0]
[1743333351593,0.9315255,607.3,606.26,1.0]
[1743333351792,5.47813837,607.31,606.26,1.0]
[1743333351992,2.28858545,607.3,606.26,1.0]
[1743333352292,0.32933195,607.29,606.26,1.0]
[1743333352689,1.10008916,607.28,606.26,1.0]
[1743333352992,0.32934279,607.27,606.26,1.0]
[1743333353192,1.71624711,607.27,606.26,1.0]
[1743333353598,1.10008916,607.26,606.26,1.0]
[1743333353891,0.32935364,607.25,606.26,1.0]
[1743333354291,1.4294428,607.25,606.43,1.0]
[1743333354992,0.32935364,607.25,606.43,1.0]
[1743333356191,1.23,607.24,606.43,1.0]
[1743333359091,1.23,607.24,606.56,1.0]
[1743333366091,1.219,607.23,606.56,1.0]
[1743333372993,1.09112059,607.22,606.56,1.0]
[1743333373594,1.219,607.23,606.56,1.0]
[1743333375298,1.6,607.22,606.56,1.0]
[1743333378204,1.6,607.22,606.74,1.0]
[1743333378405,1.498,607.21,606.74,1.0]
[1743333381604,1.437,607.2,606.74,1.0]
[1743333386603,1.437,607.2,606.59,0.28664506]
[1743333386604,1.437,607.2,606.87,1.0]
[1743333393808,3.2,607.2,606.87,1.0]
[1743333400216,3.2,607.2,607.01,1.0]
[1743333405619,1.763,607.2,607.01,1.0]
[1743333413221,1.763,607.2,606.87,1.0]
[1743333417030,3.219,607.2,606.87,1.0]
[1743333448754,4.722,607.2,606.87,1.0]
[1743333450257,6.271,607.2,606.87,1.0]
[1743333469276,7.539,607.2,606.87,1.0]
[1743333504308,7.539,607.2,606.59,0.28666985]
[1743333504309,7.539,607.2,606.72,1.0]
[1743333561936,7.539,607.2,606.49,2.5143057]
[1743333562136,7.539,607.2,606.55,1.0]
[1743333565246,7.86838076,607.2,606.55,1.0]
[1743333565642,1.10145582,607.19,606.55,1.0]
[1743333566244,1.10145582,607.18,606.55,1.0]
[1743333567145,0.32938076,607.2,606.55,1.0]
[1743333568346,0.28675843,607.19,606.55,1.0]
[1743333568644,0.32939161,607.18,606.55,1.0]
[1743333569443,1.55078679,607.17,606.55,1.0]
[1743333569644,0.32940246,607.16,606.36,1.0]
[1743333570147,1.10052471,607.15,606.36,1.0]
[1743333570344,1.42993259,607.15,606.36,1.0]
[1743333571043,1.10052471,607.14,606.36,1.0]
[1743333571442,0.32941874,607.13,606.36,1.0]
[1743333572246,0.28684234,607.12,606.36,1.0]
[1743333572442,0.32942959,607.11,606.36,1.0]
[1743333573248,1.09990675,607.1,606.36,1.0]
[1743333573549,0.32944044,607.09,606.36,1.0]
[1743333574247,1.09990675,607.08,606.36,1.0]
[1743333575048,1.09990675,607.07,606.36,1.0]
[1743333575251,0.32945672,607.06,606.36,1.0]
[1743333577249,0.32945672,607.06,605.51,2.5143057]
[1743333577449,1.09809558,607.05,606.17,1.0]
[1743333577651,0.32946758,607.04,606.17,1.0]
[1743333578250,1.09809558,607.03,606.17,1.0]
[1743333578446,0.32947843,607.02,606.17,1.0]
[1743333579353,2.54409558,607.01,606.17,1.0]
[1743333579545,1.42758487,607.0,606.17,1.0]
[1743333579747,0.32949471,606.99,606.17,1.0]
[1743333581353,0.61639026,606.99,606.17,1.0]
[1743333582354,1.258,606.98,606.17,1.0]
[1743333584256,0.32950557,606.97,606.17,1.0]
[1743333584449,0.6164165,606.97,606.17,1.0]
[1743333586655,1.0952778,606.96,606.17,1.0]
[1743333586855,0.32951643,606.95,606.17,1.0]
[1743333587250,1.0952778,606.94,606.17,1.0]
[1743333587451,1.0952778,606.94,605.91,0.2869405]
[1743333587655,1.25698517,606.93,605.99,1.0]
[1743333587855,1.2569906,606.92,605.99,1.0]
[1743333588157,0.32953815,606.91,605.99,1.0]
[1743333588452,0.92745788,606.9,605.99,1.0]
[1743333588651,0.32954901,606.89,605.99,1.0]
[1743333589452,2.9182778,606.88,605.99,1.0]
[1743333589656,0.32955987,606.87,605.99,1.0]
[1743333590360,1.38226444,606.86,605.99,1.0]
[1743333590557,0.32957073,606.85,605.99,1.0]
[1743333590754,1.0952778,606.84,605.99,1.0]
[1743333590959,0.32958159,606.83,605.99,1.0]
[1743333591461,1.0952778,606.82,605.99,1.0]
[1743333591665,0.32959245,606.81,605.99,1.0]
[1743333592659,1.0952778,606.8,605.99,1.0]
[1743333592860,0.32960332,606.79,605.99,1.0]
[1743333593065,1.0952778,606.78,605.99,1.0]
[1743333593364,0.32961418,606.77,605.99,1.0]
[1743333593869,1.0952778,606.76,605.99,1.0]
[1743333594165,1.42489741,606.76,605.99,1.0]
[1743333594365,0.32961961,606.76,605.99,1.0]
[1743333596364,0.61661808,606.76,605.99,1.0]
[1743333597271,0.32961961,606.76,605.99,1.0]
[1743333616780,1.09498763,606.75,605.99,1.0]
[1743333616984,0.32963048,606.74,605.99,1.0]
[1743333617185,1.42461811,606.74,605.99,1.0]
[1743333617386,1.71163789,606.74,605.99,1.0]
[1743333617791,1.09498763,606.73,605.99,1.0]
[1743333617987,0.32964135,606.72,605.99,1.0]
[1743333619088,1.09557949,606.71,605.99,1.0]
[1743333619289,0.32965221,606.7,605.99,1.0]
[1743333620283,0.61666962,606.7,605.99,1.0]
[1743333623091,0.32965221,606.7,605.99,1.0]
[1743333623290,1.84967791,606.7,605.99,1.0]
[1743333623589,1.84967791,606.7,605.83,1.0]
[1743333625987,1.56265221,606.7,605.83,1.0]
[1743333626589,0.28705884,606.69,605.83,1.0]
[1743333626895,0.32966308,606.68,605.83,1.0]
[1743333629499,0.28704937,606.67,605.83,1.0]
[1743333629697,0.61671788,606.67,605.83,1.0]
[1743333632097,0.32966851,606.67,605.83,1.0]
[1743333632401,0.61672025,606.67,605.83,1.0]
[1743333633001,1.275,606.66,605.83,1.0]
[1743333634304,1.10025343,606.65,605.83,1.0]
[1743333634900,1.275,606.66,605.83,1.0]
[1743333636200,1.1007087,606.65,605.83,1.0]
[1743333636802,1.275,606.66,605.83,1.0]
[1743333639006,1.281,606.65,605.83,1.0]
[1743333640608,1.468,606.64,605.83,1.0]
[1743333641109,0.32969025,606.63,605.83,1.0]
[1743333641602,0.61676212,606.63,605.83,1.0]
[1743333642306,1.416,606.62,605.83,1.0]
[1743333642508,0.32970112,606.61,605.83,1.0]
[1743333643210,1.10181955,606.6,605.83,1.0]
[1743333643511,0.32971199,606.59,605.83,1.0]
[1743333643809,1.43153154,606.59,605.83,1.0]
[1743333644104,2.29208312,606.58,605.67,1.0]
[1743333644309,2.29208312,606.57,605.67,1.0]
[1743333644511,2.29208312,606.56,605.67,1.0]
[1743333644709,2.29208312,606.55,605.67,1.0]
[1743333644903,2.62182229,606.54,605.67,1.0]
[1743333645103,2.62182773,606.53,605.67,1.0]
[1743333645303,1.68885043,606.52,605.67,1.0]
[1743333645603,1.68878923,606.51,605.67,1.0]
[1743333645807,0.32976092,606.5,605.67,1.0]
[1743333646603,1.10181955,606.49,605.67,1.0]
[1743333647710,1.10181955,606.48,605.67,1.0]
[1743333648411,1.10181955,606.47,605.67,1.0]
[1743333648812,1.836,606.46,605.67,1.0]
[1743333649207,2.93781955,606.46,605.67,1.0]
[1743333649810,1.836,606.46,605.67,1.0]
[1743333650808,2.2897768,606.45,605.15,2.5143057]
[1743333651010,2.2897768,606.44,605.52,1.0]
[1743333651214,1.35772319,606.43,605.52,1.0]
[1743333651415,1.35772319,606.42,605.52,1.0]
[1743333651618,1.35772319,606.41,605.52,1.0]
[1743333651917,1.35772319,606.4,605.52,1.0]
[1743333652117,1.35772319,606.42,605.52,1.0]
[1743333652317,2.86256968,606.4,605.52,1.0]
[1743333652719,1.10098834,606.39,605.52,1.0]
[1743333653315,1.10098834,606.38,605.52,1.0]
[1743333654022,1.10098834,606.37,605.52,1.0]
[1743333654616,2.28576439,606.44,605.52,1.0]
[1743333654921,0.93042734,606.44,605.52,1.0]
[1743333655320,1.42776515,606.43,605.52,1.0]
[1743333655721,0.32980442,606.42,605.52,1.0]
[1743333655921,1.42777059,606.42,605.52,1.0]
[1743333656320,0.28719506,606.41,605.52,1.0]
[1743333656523,0.3298153,606.4,605.52,1.0]
[1743333659821,1.0969138,606.39,605.52,1.0]
[1743333660023,0.32982618,606.38,605.52,1.0]
[1743333660422,1.0969138,606.37,605.52,1.0]
[1743333661129,1.0969138,606.36,605.52,1.0]
[1743333662121,1.0969138,606.35,605.52,1.0]
[1743333662929,1.0969138,606.34,605.52,1.0]
[1743333663849,1.0969138,606.33,605.52,1.0]
[1743333664453,0.32985882,606.32,605.52,1.0]
[1743333664749,1.42677262,606.32,605.52,1.0]
[1743333665345,1.38413968,606.31,605.52,1.0]
[1743333665844,0.3298697,606.3,605.52,1.0]
[1743333666637,1.4267835,606.3,605.52,1.0]
[1743333666837,1.0969138,606.29,605.52,1.0]
[1743333667031,0.32988058,606.28,605.52,1.0]
[1743333674836,1.577,606.27,605.52,1.0]
[1743333677137,1.802,606.26,605.52,1.0]
[1743333686545,0.3298969,606.25,605.52,1.0]
[1743333686743,0.3298969,606.25,605.34,0.28722943]
[1743333687043,0.3298969,606.25,605.39,1.0]
[1743333687634,1.09833697,606.24,605.39,1.0]
[1743333687838,0.32990779,606.23,605.39,1.0]
[1743333689841,1.09835887,606.22,605.39,1.0]
[1743333690043,0.32991867,606.21,605.39,1.0]
[1743333691642,1.09839178,606.2,605.39,1.0]
[1743333691846,0.32992956,606.19,605.39,1.0]
[1743333695050,1.90992956,606.19,605.39,1.0]
[1743333696251,3.12892956,606.19,605.39,1.0]
[1743333701456,0.28729583,606.18,605.39,1.0]
[1743333702560,0.32994044,606.17,605.39,1.0]
[1743333702759,1.43072741,606.17,605.39,1.0]
[1743333703661,0.32994044,606.17,605.39,1.0]
[1743333704461,0.28729583,606.16,605.39,1.0]
[1743333704661,0.32995133,606.15,605.39,1.0]
[1743333705162,1.10090417,606.14,605.39,1.0]
[1743333705463,0.32996221,606.13,605.39,1.0]
[1743333705963,1.10090417,606.12,605.39,1.0]
[1743333706163,0.3299731,606.11,605.39,1.0]
[1743333706762,1.10090417,606.1,605.39,1.0]
[1743333706960,1.43088272,606.1,605.39,1.0]
[1743333707356,1.43088272,606.1,605.25,1.0]
[1743333707560,1.10090417,606.09,605.25,1.0]
[1743333708058,0.32997855,606.1,605.25,1.0]
[1743333709559,1.1010705,606.09,605.25,1.0]
[1743333709957,0.32998944,606.08,605.25,1.0]
[1743333710363,1.1010705,606.07,605.25,1.0]
[1743333710559,0.33000033,606.06,605.25,1.0]
[1743333715874,1.464,606.05,605.25,1.0]
[1743333716075,0.33001122,606.04,605.25,1.0]
[1743333718074,1.525,606.03,605.25,1.0]
[1743333721977,1.678,606.02,605.25,1.0]
[1743333724076,1.132,606.01,605.25,1.0]
[1743333730276,0.330033,606.0,605.25,1.0]
[1743333731583,0.287367,605.99,605.25,1.0]
[1743333731779,0.33004389,605.98,605.12,1.0]
[1743333734184,1.307,605.97,605.12,1.0]
[1743333734384,0.33005478,605.96,605.12,1.0]
[1743333735084,1.10033348,605.95,605.12,1.0]
[1743333735586,0.33006568,605.94,605.12,1.0]
[1743333736486,1.10033348,605.93,605.12,1.0]
[1743333736687,0.33007657,605.92,605.12,1.0]
[1743333739590,1.678,605.91,605.12,1.0]
[1743333741891,1.10142912,605.9,605.12,1.0]
[1743333742288,1.43151659,605.9,605.12,1.0]
[1743333742690,1.10142912,605.89,605.12,1.0]
[1743333742890,2.70842912,605.89,605.12,1.0]
[1743333743494,1.10142912,605.88,605.12,1.0]
[1743333743892,1.607,605.89,605.12,1.0]
[1743333743893,1.10142912,605.87,605.12,1.0]
[1743333744398,1.10142912,605.86,605.12,1.0]
[1743333744798,0.33011471,605.85,605.12,1.0]
[1743333745098,1.10142912,605.84,605.12,1.0]
[1743333745297,0.33012561,605.83,605.12,1.0]